Cogmind - Beta 10 *** ADVENTURER MODE // 2020.09.20 @ 11:54:43 Player: Lowenar Result: Destroyed by Y-45 Defender with Heavy Assault Rifle Performance ------------- Evolutions (1) 500 Regions Visited (2) 400 Robots Destroyed (29) 145 Value Destroyed (567) 567 Prototype IDs (10) 200 Alien Tech Used (0) 0 Bonus (0) 0 TOTAL SCORE: 1812 Bonus ------- None Cogmind --------- Core Integrity 0/400 Matter 300/300 Energy 98/100 System Corruption 0% Temperature Cool (11) Movement Core (50) Location -9/Materials Parts ------- > --- POWER (2) -------- (None) > --- PROPULSION (3) --- (None) > --- UTILITY (2) ------ Visual Processing Unit Signal Interpreter > --- WEAPON (2) ------- Heavy Hammer > --- INVENTORY (4) ---- Improved Ion Engine Cooled Ion Engine Sensor Array Peak State ------------ > --- POWER ------------ Cooled Ion Engine > --- PROPULSION ------- VTOL Module VTOL Module Improved Flight Unit > --- UTILITY ---------- Visual Processing Unit Signal Interpreter > --- WEAPON ----------- Improved Medium Laser Light Assault Rifle > --- INVENTORY -------- Improved Ion Engine Cooled Ion Engine Sensor Array [Rating: 17] Favorites ----------- Power Ion Engine Engine Ion Engine Power Core Light Nuclear Core Propulsion VTOL Module Wheel Wheel Flight Unit VTOL Module Utility Signal Interpreter Storage Small Storage Unit Processor Signal Interpreter Weapon Light Assault Rifle Energy Gun Small Laser Ballistic Gun Light Assault Rifle Impact Weapon Heavy Hammer Build | -11 -10 -9 ------- Run | Scr Mat Mat Slots Evolved 2 | . . 2 Power 1 | . . 1 Propulsion 1 | . . 1 Utility . | . . . Weapon . | . . . Parts Attached 30 | 9 10 11 Power 6 | 1 2 3 Engine 4 | 1 . 3 Core 2 | . 2 . Reactor . | . . . Propulsion 7 | 2 2 3 Treads . | . . . Leg . | . . . Wheel 2 | 2 . . Hover . | . . . Flight 5 | . 2 3 Utility 5 | 3 2 . Device . | . . . Storage 2 | 2 . . Processor 3 | 1 2 . Hackware . | . . . Protection . | . . . Artifact . | . . . Weapon 12 | 3 4 5 Energy Gun 4 | 2 1 1 Energy Cannon . | . . . Ballistic Gun 6 | 1 3 2 Ballistic Cannon . | . . . Launcher . | . . . Special Weapon . | . . . Impact Weapon 2 | . . 2 Slashing Weapon . | . . . Piercing Weapon . | . . . Special Melee Weapon . | . . . Unidentified Prototypes 1 | . . 1 Parts Lost 11 | . 1 10 Power 2 | . . 2 Propulsion 5 | . . 5 Utility . | . . . Weapon 4 | . 1 3 Highest Loss Streak 5 | . 1 5 Average Slot Usage (%) 88 | . 97 78 Engine 9 | . 6 12 Core 4 | . 6 2 Wheel 6 | . 12 . Flight 20 | . 15 26 Storage 7 | . 13 . Processor 17 | . 13 22 Energy Gun 2 | . 5 . Ballistic Gun 17 | . 22 11 Impact Weapon 1 | . . 3 Naked Turns . | . . . Heaviest Build 17 | 16 17 16 Greatest Support 20 | 20 20 16 Greatest Overweight (x) 3 | . 3 1 Average Overweight (x) . | . . . Largest Inventory Capacity 8 | 8 8 4 Average Capacity 5 | 5 5 4 Most Carried 8 | 6 8 4 Average Carried 4 | 4 5 3 Final Capacity 8 | 8 4 4 Final Carried 6 | 6 4 3 Class Distribution -------------------- 62% | Mutant 27% | Scavenger-Mutant 10% | Sprinter Dominant Class ---------------- Mutant | -10/Materials Scavenger-Mutant | -9/Materials Resources | -11 -10 -9 ----------- Run | Scr Mat Mat Matter Collected 731 | 290 205 236 Remotely . | . . . Salvage Created 802 | 122 224 456 Parts 53 | 8 24 21 Haulers Intercepted 1 | . . 1 Recyclers Shooed 1 | . . 1 Parts Field Recycled . | . . . Retrieved Matter . | . . . Parts Self-Destructed . | . . . Prevented . | . . . Kills | -11 -10 -9 ------- Run | Scr Mat Mat Combat Hostiles Destroyed 22 | . 11 11 Melee 1 | . . 1 Guns 19 | . 11 8 Classes Destroyed 8 | 2 3 3 Tunneler 2 | 2 . . Hauler 1 | . . 1 Recycler 1 | 1 . . Watcher 3 | . 1 2 Swarmer 12 | . 9 3 Grunt 8 | . 2 6 Duelist 1 | . . 1 Sentry 1 | . . 1 Best Kill Streak 6 | 2 6 4 Combat Bots Only 6 | . 6 3 Max Kills in Single Turn 2 | 1 2 1 Gunslinging 1 | . 1 . Exploded . | . . . Melee 1 | . . 1 Uniques/NPCs Destroyed . | . . . Combat | -11 -10 -9 -------- Run | Scr Mat Mat Damage Taken 1286 | . 376 910 Core 477 | . 77 400 Absorbed by Shields . | . . . Core Remaining (%) 84 | 100 69 . Volleys Fired 106 | 6 36 64 Largest 2 | 2 2 2 Hottest 80 | 80 70 43 Shots Fired 169 | 12 66 91 Gun 169 | 12 66 91 Cannon . | . . . Launcher . | . . . Special . | . . . Kinetic 154 | . 63 91 Thermal 15 | 12 3 . Explosive . | . . . Electromagnetic . | . . . Robot Hit Streak 9 | 7 5 9 Robot Miss Streak 3 | 1 3 3 Penetration Max . | . . . Secondary Targets 7 | . 5 2 Max Gunslinging Chain 1 | . 1 1 Shots Hit Robots 136 | 9 40 87 Core Hits 47 | 4 19 24 Critical Hits 1 | . . 1 Critical Kills 1 | . . 1 Critical Parts Destroyed . | . . . Melee Attacks 23 | . . 23 Impact 23 | . . 23 Slashing . | . . . Piercing . | . . . Sneak Attacks . | . . . Combat Hostiles . | . . . Follow-up Attacks 4 | . . 4 Damage Inflicted 1506 | 112 410 984 Guns 1121 | 112 410 599 Cannons . | . . . Explosions . | . . . Melee 385 | . . 385 Ramming . | . . . Kinetic 971 | . 372 599 Thermal 150 | 112 38 . Explosive . | . . . Electromagnetic . | . . . Impact 385 | . . 385 Slashing . | . . . Piercing . | . . . Highest Corruption . | . . . Average Corruption . | . . . Corruption Purged . | . . . Overload Shots . | . . . Overflow Damage 63 | . . 63 Projectiles . | . . . Explosions . | . . . Melee 63 | . . 63 Knockbacks . | . . . Impact . | . . . Kinetic . | . . . Secondary . | . . . Self-Inflicted Damage . | . . . Shots . | . . . Rammed . | . . . Targets Rammed . | . . . Kicked . | . . . Crushed . | . . . Highest Temperature 118 | 54 51 118 Average Temperature 29 | 23 11 42 Received Heat Transfer 399 | . 33 366 Siege Activations . | . . . Robots Corrupted . | . . . Combat Hostiles . | . . . Parts Fried 1 | . . 1 Impact Corruptions 4 | . . 4 Robots Melted . | . . . Combat Hostiles . | . . . Parts Melted . | . . . Heat Transferred 361 | 250 111 . Parts Sabotaged . | . . . Parts Stolen . | . . . Parts Stripped . | . . . Power Chain Reactions . | . . . Missiles Intercepted . | . . . Alert | -11 -10 -9 ------- Run | Scr Mat Mat Peak Influence 350 | 15 230 350 Initial 82 | . 8 82 Average 134 | 7 87 213 Maximum Alert Level 1 | . 1 1 Low Security (%) 70 | 100 94 37 Level 1 29 | . 5 62 Level 2 . | . . . Level 3 . | . . . Level 4 . | . . . Level 5 . | . . . High Security . | . . . Max Security . | . . . Squads Dispatched . | . . . Investigation . | . . . Extermination . | . . . Reinforcement . | . . . Assault . | . . . Garrison . | . . . Intercept . | . . . Construction Impeded . | . . . Haulers Reinforced . | . . . Stealth | -11 -10 -9 --------- Run | Scr Mat Mat Distress Signals 3 | . 1 2 Communications Jammed . | . . . Distress Signals . | . . . Times Spotted 45 | . 16 29 Peak Tracking Total 9 | . 7 9 Tactical Retreats 2 | . . 2 Traps | -11 -10 -9 ------- Run | Scr Mat Mat Traps Triggered . | . . . Indirectly . | . . . Trap Hack Attempts . | . . . Triggered . | . . . Disarmed 2 | . 2 . Reprogrammed . | . . . Reused . | . . . Traps Extracted . | . . . Installed . | . . . Triggered . | . . . Machines | -11 -10 -9 ---------- Run | Scr Mat Mat Machines Disabled . | . . . Max in Single Turn . | . . . Machines Sabotaged . | . . . Garrisons Compromised . | . . . Overloaded Fab Kills . | . . . Fab Network Shutdowns . | . . . Hacking | -11 -10 -9 --------- Run | Scr Mat Mat Machines Accessed 18 | . 11 7 Terminals 14 | . 8 6 Fabricators . | . . . Repair Stations 1 | . 1 . Recycling Units 3 | . 2 1 Scanalyzers . | . . . Garrison Access . | . . . Total Hacks 55 | . 31 24 Successful 42 | . 23 19 Failed 13 | . 8 5 Catastrophic 1 | . . 1 Database Lockouts . | . . . Manual 16 | . 8 8 Terminals 46 | . 24 22 Fabricators . | . . . Repair Stations 3 | . 3 . Recycling Units 6 | . 4 2 Scanalyzers . | . . . Garrison Access . | . . . Terminal Hacks 24 | . 13 11 Prototype ID Bank 5 | . 2 3 Branch Access Points 1 | . 1 . Alert Level 2 | . 1 1 Locate Traps 8 | . 5 3 Disarm Traps 1 | . 1 . Hauler Manifests 4 | . 2 2 Registered Components 1 | . . 1 Zone Layout 2 | . 1 1 Fabricator Hacks . | . . . Repair Station Hacks 2 | . 2 . Scan Component 1 | . 1 . Repair 1 | . 1 . Recycling Unit Hacks 4 | . 2 2 Report Inventory 3 | . 2 1 Retrieve Components 1 | . . 1 Scanalyzer . | . . . Garrison Access Hacks . | . . . Unauthorized Hacks 12 | . 6 6 Terminals 10 | . 4 6 Botnet 9 | . 4 5 Operators 1 | . . 1 Fabricators . | . . . Repair Stations . | . . . Recycling Units 2 | . 2 . Monitor 2 | . 2 . Scanalyzers . | . . . Garrison Access . | . . . Data Cores Recovered . | . . . Used . | . . . Hacking Detections 11 | . 8 3 Full Trace Events . | . . . Feedback Events . | . . . Feedback Blocked . | . . . Robot Schematics Acquired . | . . . Robots Built . | . . . Matter . | . . . Time . | . . . Total Robot Build Rating . | . . . Part Schematics Acquired . | . . . Parts Built . | . . . Matter . | . . . Time . | . . . Total Part Build Rating . | . . . Parts Repaired 1 | . 1 . Time 38 | . 38 . Parts Recycled . | . . . Recycled Matter . | . . . Retrieved Matter . | . . . Retrieved Components 10 | . . 10 Parts Scanalyzed . | . . . Part Schematics Acquired . | . . . Parts Damaged . | . . . Bothacking | -11 -10 -9 ------------ Run | Scr Mat Mat Used RIF Installer . | . . . Robots Hacked . | . . . Non-combat . | . . . Combat . | . . . Robot Hacks Applied . | . . . Relay Couplers Released . | . . . Robots Rewired . | . . . Allies Hacked . | . . . Hacks Repelled . | . . . Allies | -11 -10 -9 -------- Run | Scr Mat Mat Total Allies . | . . . Largest Group . | . . . Highest-Rated Group . | . . . Highest-Rated Ally . | . . . Total Orders . | . . . Ally Attacks . | . . . Total Damage . | . . . Kills . | . . . Allies Corrupted . | . . . Allies Melted . | . . . Intel | -11 -10 -9 ------- Run | Scr Mat Mat Robot Analysis Total . | . . . Derelict Logs Recovered . | . . . Drone Launches . | . . . Drone Recoveries . | . . . Exploration | -11 -10 -9 ------------- Run | Scr Mat Mat Turns Passed 1284 | 123 606 555 Spaces Moved 1577 | 105 766 706 Core 2 | 2 . . Treads . | . . . Legs . | . . . Wheels 395 | 103 292 . Hover . | . . . Flight 1180 | . 474 706 Fastest Speed 32 | 50 37 32 Average Speed 50 | 79 53 42 Slowest Speed 280 | 80 280 120 Overloaded Moves . | . . . Propulsion Burnouts . | . . . Robots Hopped 4 | . . 4 Cave-ins Triggered . | . . . Exploration Rate (%) 48 | 3 97 44 Regions Visited 2 Branch Regions . Pre-discovered Areas . | . . . Known Exits Taken 1 | . 1 . Unknown Exits Taken 1 | 1 . . Scrap Searched . | . . . Spaces Dug . | . . . Terrain Destroyed . | . . . Melee . | . . . Projectile . | . . . AOE . | . . . Terrain Rammed . | . . . Walls Destroyed . | . . . Machines Disabled . | . . . Actions | -11 -10 -9 --------- Run | Scr Mat Mat Total 1878 | 130 904 844 Wait 99 | . 64 35 Move 1567 | 104 765 698 Hop 4 | . . 4 Pick Up 20 | 8 9 3 Fast Attach 23 | 7 8 8 Attach 7 | 2 1 4 Detach 8 | 2 3 3 Swap 1 | . 1 . Drop 24 | 1 17 6 Fire 106 | 6 36 64 Melee 19 | . . 19 Ram . | . . . Kick . | . . . Crush . | . . . Escape Stasis . | . . . Rewire . | . . . Trap . | . . . Miscellaneous . | . . . Route ------- -11/Scrapyard -10/Materials (discovered 4 exits: *Mat x3 / *Min) -9/Materials (discovered 2 exits: [*Mat x2]) History --------- Turn | Location | Event 6 | -11/Scrapyard | Discovered new exit (range 15) 124 | -11/Scrapyard | Entered Materials 257 | -10/Materials | Discovered new exit (range 16) 277 | -10/Materials | Discovered new exit (range 17) 286 | -10/Materials | Identified exit to Mines 293 | -10/Materials | Discovered new exit (range 16) 303 | -10/Materials | Build established: Mutant 453 | -10/Materials | Identified exit to Materials 501 | -10/Materials | Discovered exit to Materials (range 14) 634 | -10/Materials | Repaired Lgt. Nuclear Core 730 | -10/Materials | Entered another Materials area 730 | -9/Materials | Evolved 2 slots: Power x1, Propulsion x1 838 | -9/Materials | Discovered new exit (range 18) 996 | -9/Materials | Build established: Scavenger-Mutant 1180 | -9/Materials | Discovered new exit (range 17) 1267 | -9/Materials | Core integrity fell below 50% 1277 | -9/Materials | Core integrity fell below 20% 1285 | -9/Materials | Destroyed by Y-45 Defender with Heavy Assault Rifle Last Messages --------------- 01239_ W-16 Scout distress signal alerts nearby ally. 01244_ Destroyed Hover Unit. 01244_ W-16 Scout system corrupted by crushing effect. 01245_ W-16 Scout system terminally corrupted. 01258_ Hvy. Hammer follow-up attack on Y-45 Defender. 01261_ VTOL Module destroyed. 01261_ C-30 ARC bursts open, deploying its payload. 01261_ S-10 Pest unfolds itself. 01267_ K-01 Serf collects debris. 01267_ Cld. Ion Engine destroyed. 01272_ K-01 Serf collects debris. 01272_ U-05 Engineer destroyed. 01272_ U-05 Engineer lays Concrete. 01273_ VTOL Module destroyed. 01275_ Hvy. Hammer follow-up attack on Y-45 Defender. 01275_ K-01 Serf collects debris. 01278_ S-10 Pest destroyed. 01279_ K-01 Serf collects debris. 01282_ Hvy. Hammer destroyed. 01285_ Imp. Flight Unit destroyed. Map ----- +----------------------------------------------------+ | | | ?????????????????????????????????????????????????? | | ?????????????????????????????????????????????????? | | ?????????????????????????????????????????????????? | | ?????????????????????????????????????????????????? | | ?????????????????????????????????????????????????? | | ?????????????????????????????????????????????????? | | ?????????????????????????????????????????????????? | | ?????????????????????????????????????????????????? | | ?????????????????????????????????###?????????????? | | ????????????????????????????????? #????????????? | | ????????????????????????????????? < #????????????? | | ????????????????????????????????# #????????????? | | ????????????????????????????????# #????????????? | | ??????????????????????????####### #????????????? | | ?????????????????????????? ## #????????????? | | ??????????????????????????" ## #????????????? | | ??????????????????????#?"T ## #????????????? | | ??????????????????????# """ ## #????????????? | | ??????????????????????+ ## #?????????#### | | ??????????????????????# """ ## #?????????# | | ???????????????????????? """ =[## #?????????# | | ?????????????????????????""" = # #?????????# [ | | ?????????????????????????? ## ##????????# | | ????????????# ] ##########+### %k #????????# | | ????????????# Y@s u #????????# | | ????????????# gg%* = s #????????# " | | ????????????# g! [% Y % ########## " | | ????????????# ###+########## | | ????????? w##??? ??????????## ############# | | ?????????# ??????#??????????####+##??????????##+# | | ?????????????????????????????# #?????????? | | ?????????????????????????????# " #???????? | | ?????????????????????????????# """ #???????# """ " | | ?????????????????????????????# """ #???????# """ " | | ?????????????????????????????# """ #???????# """ " | | ?????????????????????????????# "" #???????# """ " | | ?????????????????????????????# """ #???????# """ " | | ?????????????????????????????# "" #???????#??? | | ?????????????????????????????# "" #???????????### | | ?????????????????????????????# " #?????????????? | | ?????????????????????????????# % #?????????????? | | ?????????????????????????????# % #######???????? | | ?????????????? ###+#############+### ######### | | ?????????????? | | ????????????? | | ????????????? | | ????????????? ##### ######### | | ????????????????############ #######+####??????? | | ???????????????????????????# ## #??????? | +----------------------------------------------------+ Best States ------------- Heat Dissipation 28 Energy Generation 21 Energy Capacity 445 Matter Stores 300 Matter Capacity 300 Sight Range 18 Terrain Scan Density 60 Resistance: KI 20 Resistance: TH 20 Resistance: EX 20 Resistance: EM 20 Resistance: I 20 Resistance: S 20 Resistance: P 20 Evasion (%) 63 Offensive Hacking 10 Item Schematics ----------------- None Robot Schematics ------------------ None Fabricated ------------ Nothing Alien Tech Used ----------------- None Achievements -------------- None Challenges ------------ None Game ------ Seed MediumCompactMegatreads Manual? 0 Play Time 00:39:47 Cumulative 36.0 hours Start 2020.09.20 @ 11:16:52 End 2020.09.20 @ 11:54:43 Sessions 1 Manual Loads 0 Difficulty Adventurer Special Mode None Game No. 30 Rogue 28 Adventurer 2 Explorer 0 Win Type - Total 0 Types 0/0/0/0/0/0/0/0/0 Lore% 24 Gallery% 37 Achievement% 19 Wizard Run 0 Options --------- ASCII 0 Keyboard 1 Movement Numpad Keybinds 0 Fullscreen 1 Font 18/SmallcapsGlow Map View 76x50 Tactical HUD 1 Map Filters NONE Filters NONE Steam 1 RUN: 906acc1d-c6bb-4eb8-b73f-6d4f405f9b89